bitfinex/quotes_ETHUSD_20240828
["timestamp","ask_amount","ask_price","bid_price","bid_amount"]
[1724887500672,3.94736,2533.4,2532.8,2.3243]
[1724887500816,3.94736,2533.4,2532.6,1.75573172]
[1724887500817,3.947,2533.6,2533.0,3.94784]
[1724887501018,3.947,2533.6,2533.1,2.3243]
[1724887501619,3.947,2533.6,2533.2,2.2544]
[1724887502130,7.89404,2533.6,2533.2,2.2544]
[1724887502549,3.94711,2533.5,2533.2,2.2544]
[1724887502721,7.89405,2533.6,2533.2,2.2544]
[1724887502924,3.9473,2533.4,2533.2,2.2544]
[1724887503229,3.9473,2533.4,2532.9,4.28974996]
[1724887503230,3.9473,2533.4,2533.0,2.2544]
[1724887503424,3.9473,2533.4,2533.0,2.908832]
[1724887503632,3.94743,2533.3,2533.0,2.908832]
[1724887504257,3.94743,2533.3,2533.0,2.2544]
[1724887504464,3.9473,2533.4,2533.0,2.2544]
[1724887505148,3.94715,2533.5,2533.0,2.2544]
[1724887506370,3.94728,2533.4,2533.0,2.2544]
[1724887506672,3.94728,2533.4,2533.1,0.654408]
[1724887507042,3.947,2533.6,2533.2,2.2631]
[1724887507366,7.89406,2533.6,2533.2,2.2631]
[1724887507531,3.947,2533.6,2533.2,2.2631]
[1724887508463,3.9471,2533.5,2533.2,2.2631]
[1724887508832,3.947,2533.6,2533.2,2.2631]
[1724887509059,7.89406,2533.6,2533.2,2.5548508]
[1724887509376,3.947,2533.6,2533.2,2.5548508]
[1724887511757,3.94681,2533.7,2533.2,4.31825318]
[1724887512079,3.94621,2534.1,2533.2,4.31825318]
[1724887512080,3.94581,2534.4,2533.4,4.21009635]
[1724887512237,3.94581,2534.4,2534.0,2.2986]
[1724887512238,3.94584,2534.4,2534.0,2.2986]
[1724887512469,2.3948,2534.7,2534.0,2.2986]
[1724887512470,3.94608,2534.2,2534.0,2.2986]
[1724887512751,0.394608,2534.1,2534.0,2.2986]
[1724887512952,7.89221,2534.2,2534.0,2.2986]
[1724887513473,3.94608,2534.2,2534.0,2.2986]
[1724887514381,11.29517,2534.8,2534.2,3.94597]
[1724887514533,11.29517,2534.8,2534.3,2.37751011]
[1724887514891,3.94517,2534.8,2534.3,2.37751011]
[1724887515238,3.94517,2534.8,2534.3,6.32335011]
[1724887515463,4.007971,2535.0,2534.6,2.2986]
[1724887518685,4.007971,2535.0,2534.8,2.2986]
[1724887524185,4.007971,2535.0,2534.9,6.30122]
[1724887524338,4.007971,2535.0,2534.9,10.79614]
[1724887526092,4.007971,2535.0,2534.9,2.3563]
[1724887526460,4.007971,2535.0,2534.7,2.4554]
[1724887526681,7.952751,2535.0,2534.7,2.4554]
[1724887526977,4.007971,2535.0,2534.7,2.4554]
[1724887527563,4.007971,2535.0,2534.7,3.1579164]
[1724887528540,4.007971,2535.0,2534.9,3.94492]
[1724887528744,4.007971,2535.0,2534.7,6.40062]
[1724887529141,4.007971,2535.0,2534.7,10.34577]
[1724887529382,4.007971,2535.0,2534.8,3.94508]
[1724887529591,4.007971,2535.0,2534.9,11.351303]
[1724887529745,4.007971,2535.0,2534.9,11.901303]
[1724887529949,4.007971,2535.0,2534.9,7.956383]
[1724887530866,4.007971,2535.0,2534.9,11.901303]
[1724887531748,4.007971,2535.0,2534.9,16.11139935]
[1724887532483,4.007971,2535.0,2534.9,11.901303]
[1724887532690,4.007971,2535.0,2534.9,7.956383]
[1724887532892,4.007971,2535.0,2534.9,11.901303]
[1724887534079,4.007971,2535.0,2534.9,7.956383]
[1724887534282,4.007971,2535.0,2534.9,11.901303]
[1724887534786,4.007971,2535.0,2534.9,7.956383]
[1724887534965,4.007971,2535.0,2534.9,11.901303]
[1724887535482,4.007971,2535.0,2534.9,7.956383]
[1724887536182,4.007971,2535.0,2534.9,4.011463]
[1724887536384,4.007971,2535.0,2534.9,3.461463]
[1724887539081,4.007971,2535.0,2534.6,3.94532]
[1724887539082,4.007971,2535.0,2534.6,6.38022]
[1724887540696,7.952831,2535.0,2534.5,7.41]
[1724887540881,3.94518,2534.8,2534.4,2.4511]
[1724887541059,3.94518,2534.8,2534.5,0.81557364]
[1724887541660,6.33837,2534.8,2534.2,0.63234962]
[1724887541887,3.94541,2534.6,2534.2,0.63234962]
[1724887542567,6.33838,2534.8,2534.2,0.63234962]
[1724887542568,3.94525,2534.7,2534.2,0.63234962]
[1724887545572,6.33838,2534.8,2534.2,4.57832962]
[1724887545869,10.290721,2535.0,2534.4,3.94569]
[1724887546198,4.007971,2535.0,2534.7,3.94521]
[1724887546403,4.007971,2535.0,2534.8,1.017559]
[1724887547675,4.007971,2535.0,2534.8,4.962629]
[1724887549016,4.007971,2535.0,2534.8,1.017559]
[1724887550293,4.007971,2535.0,2534.8,4.962629]
[1724887551816,4.007971,2535.0,2534.8,1.017559]
[1724887552016,4.007971,2535.0,2534.6,3.94527]
[1724887552538,4.007971,2535.0,2534.6,7.89058]
[1724887552847,4.007971,2535.0,2534.6,3.94527]
[1724887553329,10.312341,2535.0,2534.4,6.31577]
[1724887553492,10.312341,2535.0,2534.4,7.8276182]
[1724887553691,10.312341,2535.0,2534.4,6.31577]
[1724887553927,10.312341,2535.0,2534.5,3.94545]
[1724887555534,14.257221,2535.0,2534.4,6.3159]
[1724887555746,14.257221,2535.0,2534.4,3.9457]
[1724887555892,14.257201,2535.0,2534.5,0.45924056]
[1724887556311,10.312341,2535.0,2534.5,0.45924056]
[1724887558036,14.257201,2535.0,2534.5,0.45924056]
[1724887558239,10.312341,2535.0,2534.5,0.45924056]
[1724887558422,10.312341,2535.0,2534.6,0.83504006]
[1724887559549,14.257221,2535.0,2534.6,0.83504006]
[1724887559852,14.257221,2535.0,2534.2,6.22999]
[1724887559853,3.94517,2534.8,2534.2,6.22999]
[1724887560023,3.94516,2534.8,2534.2,6.22999]
[1724887560211,3.94516,2534.8,2534.2,10.17593]
[1724887560520,3.94516,2534.8,2534.2,6.22999]
[1724887560719,3.94516,2534.8,2534.3,1.363999]
[1724887560920,3.94525,2534.7,2534.3,1.363999]
[1724887561121,2.48357964,2534.9,2534.3,5.309839]
[1724887561324,3.94509,2534.8,2534.4,1.1539829]
[1724887561566,3.94509,2534.8,2534.3,1.363999]
[1724887562059,3.94509,2534.8,2534.3,5.309859]
[1724887562617,7.89029,2534.8,2534.3,1.363999]
[1724887563421,3.94509,2534.8,2534.3,1.363999]
[1724887563622,6.42981,2534.6,2534.1,11.35617]
[1724887563825,6.42981,2534.6,2534.1,3.94617]
[1724887564539,2.4844,2534.6,2534.2,3.946]
[1724887564853,2.4844,2534.6,2534.2,4.968723]
[1724887565530,6.42979,2534.6,2534.2,4.968723]
[1724887565929,6.42979,2534.6,2534.2,1.022723]
[1724887566760,6.43565,2534.8,2534.2,4.968683]
[1724887566923,3.94528,2534.7,2534.3,0.4968873]
[1724887569965,6.43565,2534.8,2534.3,0.4968873]
[1724887570261,10.38088,2534.8,2534.3,0.4968873]
[1724887570466,3.94528,2534.7,2534.3,0.4968873]
[1724887571231,3.94528,2534.7,2534.1,7.89215]
[1724887573440,6.43565,2534.8,2534.2,3.94601]
[1724887573638,3.94515,2534.8,2534.4,2.4529]
[1724887573853,3.94493,2534.9,2534.5,0.64776506]
[1724887575484,11.357971,2535.0,2534.7,3.94522]
[1724887575785,4.007971,2535.0,2534.9,3.94492]
[1724887575934,4.007971,2535.0,2534.9,4.970614]
[1724887576278,4.007971,2535.0,2534.9,8.915534]
[1724887576480,4.007971,2535.0,2534.9,11.716134]
[1724887577773,4.007971,2535.0,2534.9,1.025694]
[1724887577957,4.007971,2535.0,2534.8,3.94505]
[1724887578769,4.007971,2535.0,2534.9,3.94492]
[1724887578975,4.007971,2535.0,2534.9,6.19552]
[1724887584101,4.007971,2535.0,2534.8,3.94508]
[1724887586002,4.007971,2535.0,2534.6,7.89054]
[1724887586209,4.007971,2535.0,2534.7,4.79904051]
[1724887588307,4.007971,2535.0,2534.8,3.94506]
[1724887588477,4.007971,2535.0,2534.8,10.22016]
[1724887588671,4.007971,2535.0,2534.9,3.94492]
[1724887591615,4.007971,2535.0,2534.8,10.22009]
[1724887592413,4.007971,2535.0,2534.8,11.32748205]
[1724887592621,4.007971,2535.0,2534.8,8.99738205]
[1724887592785,4.007971,2535.0,2534.8,5.05238205]
[1724887593086,4.007971,2535.0,2534.8,8.99737205]
[1724887593412,4.007971,2535.0,2534.9,3.94492]
[1724887593573,4.007971,2535.0,2534.9,4.93003326]
[1724887596203,6.493971,2535.0,2534.8,3.94499]
[1724887597020,6.493971,2535.0,2534.4,3.94561]
[1724887597184,6.493971,2535.0,2534.5,3.94547]
[1724887597372,6.493971,2535.0,2534.5,0.789108]
[1724887597574,8.97751267,2535.0,2534.6,3.94537]
[1724887597796,6.493971,2535.0,2534.6,3.94537]
[1724887598183,8.97751267,2535.0,2534.4,7.8912]
[1724887598512,2.2504,2534.7,2534.0,3.94628]
[1724887599913,6.19575,2534.7,2534.2,3.94592]
[1724887600140,1.29222327,2534.9,2533.8,0.61785409]
[1724887600141,6.2343,2534.4,2533.8,3.94657]
[1724887600278,2.2885,2534.4,2533.8,5.721265]
[1724887600481,2.2885,2534.4,2533.9,3.94648]
[1724887600706,6.23431,2534.4,2533.8,1.774715]
[1724887602211,6.23431,2534.4,2533.8,5.721335]
[1724887602525,2.2885,2534.4,2533.9,3.9464]
[1724887603013,7.35,2534.7,2534.0,3.94632]
[1724887603014,2.4221,2534.6,2534.0,3.94632]
[1724887603219,6.36749,2534.6,2534.1,0.638872]
[1724887604211,6.36749,2534.6,2534.0,3.94624]
[1724887604212,3.94557,2534.5,2534.0,3.94624]
[1724887604620,6.38144,2534.4,2533.8,3.94657]
[1724887604926,10.32729,2534.4,2533.8,3.94661]
[1724887605080,10.32729,2534.4,2533.8,4.735957]
[1724887605782,3.94602,2534.2,2533.8,0.789347]
[1724887606022,2.4635,2534.1,2533.8,0.789347]
[1724887610423,3.94635,2534.0,2533.4,3.94711]
[1724887610588,6.40977,2534.1,2533.5,3.94709]
[1724887610788,6.40977,2534.1,2533.6,0.78942]
[1724887611000,3.94635,2534.0,2533.5,3.94709]
[1724887612633,6.40977,2534.1,2533.5,3.94709]
[1724887612817,10.35605,2534.1,2533.5,3.94709]
[1724887613001,3.94641,2534.0,2533.5,3.94709]
[1724887614590,6.40977,2534.1,2533.5,8.910527]
[1724887614792,10.19164,2534.3,2533.6,2.4297]
[1724887614992,6.24565,2534.3,2533.7,3.94679]
[1724887615194,6.24565,2534.3,2533.7,5.0807827]
[1724887615406,3.94602,2534.2,2533.7,5.0807827]
[1724887615608,10.19164,2534.3,2533.7,5.0807827]
[1724887616329,6.24565,2534.3,2533.7,5.0807827]
[1724887616529,8.73096281,2534.3,2533.7,9.0275727]
[1724887616704,8.73096281,2534.3,2533.7,5.0807827]
[1724887617542,4.78501281,2534.3,2533.9,3.94648]
[1724887617737,2.2997,2534.3,2533.9,3.94648]
[1724887617894,4.78501281,2534.3,2533.9,3.94648]
[1724887618096,2.2997,2534.3,2533.9,3.94648]
[1724887618291,4.78501281,2534.3,2533.9,3.94648]
[1724887619327,2.2997,2534.3,2533.9,4.81090583]
[1724887619738,9.83647905,2534.4,2533.9,8.75728583]
[1724887619941,9.83647905,2534.4,2533.9,8.75718583]
[1724887620117,9.83647905,2534.4,2534.0,6.28931]
[1724887620318,9.83647905,2534.4,2534.0,5.05622158]
[1724887620560,9.83647905,2534.4,2533.9,7.89277]
[1724887620862,9.83647905,2534.4,2533.9,3.94638]
[1724887621315,7.35,2534.4,2533.9,3.94638]
[1724887622918,11.29571,2534.4,2533.9,3.94638]
[1724887623318,3.94571,2534.4,2533.9,3.94638]
[1724887625349,3.94586,2534.3,2533.7,7.89334]
[1724887625514,3.94586,2534.3,2533.7,8.522318]
[1724887625719,3.94586,2534.3,2533.8,3.94655]
[1724887626154,6.39273,2534.5,2533.9,3.94638]
[1724887626404,13.77753025,2534.7,2534.1,3.94601]
[1724887626531,11.29532,2534.7,2534.2,3.94589]
[1724887627075,11.29532,2534.7,2534.0,2.8735]
[1724887627921,3.0,2534.6,2534.0,2.8735]
[1724887628154,3.94563,2534.5,2534.1,1.076626]
[1724887628367,3.94563,2534.5,2533.8,2.3022]
[1724887628368,2.3706,2534.5,2533.8,2.3022]
[1724887628535,3.94572,2534.4,2533.9,0.23022]
[1724887629245,2.3706,2534.5,2533.9,0.23022]
[1724887629560,2.3706,2534.5,2534.0,4.02522702]
[1724887629952,2.3706,2534.5,2534.0,0.07891702]
[1724887630662,2.3706,2534.5,2533.9,0.23022]
[1724887631642,2.3706,2534.5,2533.9,4.17668]
[1724887631845,2.3706,2534.5,2534.0,1.042538]
[1724887634056,3.0,2534.6,2534.0,5.06769508]
[1724887634367,3.0,2534.6,2534.0,9.01393508]
[1724887634575,3.0,2534.6,2534.1,2.4085]
[1724887635257,6.94543,2534.6,2534.0,1.042538]
[1724887635586,3.0,2534.6,2534.0,3.94631]
[1724887638287,3.0,2534.6,2534.1,3.94616]
[1724887639193,3.0,2534.6,2534.0,3.94631]
[1724887639396,3.0,2534.6,2534.1,0.635481]
[1724887640357,3.0,2534.6,2534.1,4.581641]
[1724887641362,5.48033176,2534.6,2534.1,4.581641]
[1724887641577,3.0,2534.6,2534.1,4.581641]
[1724887641988,12.16563176,2534.7,2534.1,4.581641]
[1724887642198,3.0,2534.6,2534.2,0.4581641]
[1724887642519,5.48483065,2534.6,2534.2,0.4581641]
[1724887643210,5.48483065,2534.6,2533.9,10.30133]
[1724887643373,2.48483065,2534.5,2533.9,10.30133]
[1724887643573,2.48483065,2534.4,2534.0,3.94628]
[1724887645807,2.48483065,2534.5,2534.0,3.94628]
[1724887646013,2.48483065,2534.5,2534.0,4.976394]
[1724887647164,2.48837416,2534.5,2534.0,4.976394]
[1724887647604,2.48837416,2534.4,2534.0,4.976394]
[1724887648517,2.48837416,2534.5,2534.1,1.1331254]
[1724887649017,2.48837416,2534.5,2533.9,2.4085]
[1724887652208,2.48835508,2534.5,2533.9,2.4085]
[1724887653376,2.48835508,2534.4,2533.9,2.4085]
[1724887653611,2.48835508,2534.5,2533.9,2.4085]
[1724887653775,2.48835508,2534.5,2534.0,0.24085]
[1724887655018,16.53365093,2534.7,2534.2,2.4552]
[1724887655019,2.48835508,2534.7,2534.2,2.4552]
[1724887655331,4.007971,2535.0,2534.2,2.4552]
[1724887655332,2.48835508,2534.8,2534.2,2.4552]
[1724887655776,4.94395508,2534.8,2534.2,2.4552]
[1724887656123,1.7525698,2534.5,2534.0,2.325]
[1724887656281,4.24092488,2534.5,2533.8,2.325]
[1724887656503,3.0,2534.4,2533.8,2.325]
[1724887656705,5.48835508,2534.4,2533.8,2.325]
[1724887656900,3.0,2534.4,2533.8,2.325]
[1724887657116,3.0,2534.4,2533.9,0.2325]
[1724887657507,5.48835508,2534.4,2533.9,0.2325]
[1724887657828,5.48801405,2534.4,2533.9,0.2325]
[1724887658030,3.0,2534.4,2533.9,0.2325]
[1724887658650,5.48801405,2534.5,2534.0,2.2757]
[1724887658940,2.48801405,2534.5,2534.0,2.2757]
[1724887660403,2.48801405,2534.4,2534.0,2.2757]
[1724887660603,5.48801405,2534.4,2534.0,2.2757]
[1724887661448,2.48801405,2534.4,2534.0,2.50327]
[1724887661850,2.4881624,2534.4,2534.0,2.50327]
[1724887662017,2.4881624,2534.4,2534.0,2.2757]
[1724887663643,4.8580624,2534.4,2533.7,2.3131]
[1724887663857,3.9461,2534.2,2533.7,2.3131]
[1724887664072,4.8580624,2534.2,2533.3,2.3131]
[1724887664239,3.0,2534.1,2533.4,0.84928198]
[1724887664442,6.94626,2534.1,2533.6,2.2623]
[1724887667738,9.43436484,2534.1,2533.6,2.2623]
[1724887667941,11.1846423,2534.1,2533.6,2.2623]
[1724887668351,8.69653746,2534.1,2533.6,2.2623]
[1724887668666,10.67064464,2533.9,2533.2,0.61797124]
[1724887668873,3.0,2533.8,2533.1,2.3016]
[1724887669025,3.0,2533.8,2533.2,1.39820623]
[1724887669368,6.94665,2533.8,2533.2,0.78016]
[1724887669529,6.94665,2533.8,2533.1,2.3016]
[1724887670823,3.9468,2533.7,2533.1,2.3016]
[1724887671023,3.0,2533.6,2533.1,2.3016]
[1724887671936,3.0,2533.7,2533.1,2.3016]
[1724887672360,3.0,2533.7,2533.2,0.23016]
[1724887672566,6.94681,2533.7,2533.1,2.3016]
[1724887672867,3.0,2533.7,2533.1,2.3016]
[1724887673641,6.94681,2533.7,2533.1,2.3016]
[1724887675068,3.0,2533.7,2533.1,2.3016]
[1724887675292,3.0,2533.7,2533.3,2.2638]
[1724887678164,3.0,2534.0,2533.5,2.3755]
[1724887678478,3.0,2534.1,2533.6,0.32437392]
[1724887678644,3.9458,2534.4,2533.7,2.267]
[1724887678645,3.0,2534.2,2533.7,2.267]
[1724887678843,3.0,2534.4,2533.9,2.267]
[1724887679063,2.48446394,2534.5,2533.9,2.267]
[1724887679064,9.43014394,2534.5,2533.9,2.267]
[1724887679480,5.48446394,2534.5,2533.9,2.267]
[1724887679697,5.48446394,2534.5,2534.0,0.2267]
[1724887679988,3.0,2534.5,2534.0,0.2267]
[1724887680489,6.94555,2534.5,2533.9,2.267]
[1724887681389,6.9442935,2534.5,2533.9,2.267]
[1724887681595,3.94571,2534.4,2533.7,2.3178]
[1724887681795,3.94571,2534.4,2533.8,0.86132443]
[1724887681998,3.94571,2534.4,2533.8,0.31132443]
[1724887682201,7.89231,2534.2,2533.7,2.3178]
[1724887682405,2.3633,2534.2,2533.5,2.3178]
[1724887682588,3.94649,2533.9,2533.2,2.3178]
[1724887682992,0.23633,2534.1,2533.2,2.3178]
[1724887683301,3.94621,2534.1,2533.3,2.3178]
[1724887683505,3.0,2534.0,2533.4,0.29357386]
[1724887683802,6.94634,2534.0,2533.4,0.29357386]
[1724887686982,10.89282,2534.0,2533.4,0.29357386]
[1724887687840,10.89282,2534.0,2533.3,2.3178]
[1724887687841,3.9469,2533.7,2533.3,2.3178]
[1724887688665,3.9469,2533.7,2533.0,3.11623328]
[1724887688866,3.9469,2533.7,2533.0,2.4982]
[1724887689103,3.9469,2533.7,2533.1,0.24982]
[1724887689610,3.0,2533.6,2533.0,2.4982]
[1724887689920,6.94703,2533.6,2533.0,2.4982]
[1724887690271,3.94712,2533.5,2533.0,2.4982]
[1724887690497,3.0,2533.4,2533.0,2.4982]
[1724887693898,3.0,2533.4,2533.0,2.80983114]
[1724887694135,3.0,2533.6,2533.0,2.80983114]
[1724887697103,3.94711,2533.5,2533.0,2.80983114]
[1724887697302,3.0,2533.4,2533.0,2.80983114]
[1724887697968,3.0,2533.6,2533.0,2.80983114]
[1724887698170,3.0,2533.6,2533.0,2.4982]
[1724887698171,6.94699,2533.6,2533.0,2.4982]
[1724887699039,10.89402,2533.6,2533.0,2.4982]
[1724887699244,6.94699,2533.6,2533.0,2.4982]
[1724887699441,10.89407,2533.6,2533.0,2.4982]
[1724887699643,6.94699,2533.6,2533.0,2.74802]
[1724887702336,10.89403,2533.6,2533.0,2.74802]
[1724887702537,3.94711,2533.5,2533.0,2.74802]
[1724887702784,3.0,2533.4,2533.0,2.74802]
[1724887703572,3.0,2533.5,2533.0,2.74802]
[1724887704085,6.94718,2533.5,2533.0,2.74802]
[1724887710514,3.0,2533.5,2533.1,0.274802]
[1724887711280,3.0,2533.5,2533.0,2.4982]
[1724887711690,6.94711,2533.5,2533.0,2.4982]
[1724887714378,3.0,2533.5,2533.0,2.4982]
[1724887714579,3.0,2533.6,2533.1,5.70152445]
[1724887714818,3.0,2533.6,2533.3,2.4273]
[1724887717734,7.35,2533.7,2533.3,2.4273]
[1724887718239,11.29689,2533.7,2533.3,2.4273]
[1724887718599,3.94689,2533.7,2533.3,2.4273]
[1724887718799,3.94689,2533.7,2533.3,2.67003]
[1724887719095,7.89347,2533.8,2533.3,2.67003]
[1724887719296,3.0,2533.7,2533.3,2.67003]
[1724887719842,6.9468,2533.7,2533.3,2.67003]
[1724887720133,6.9468,2533.7,2533.3,2.4273]
[1724887720840,3.0,2533.7,2533.3,2.4273]
[1724887721147,6.9468,2533.7,2533.3,2.4273]
[1724887722090,3.0,2533.7,2533.3,2.4273]
[1724887722296,6.94685,2533.7,2533.3,2.4273]
[1724887722794,3.0,2533.7,2533.3,2.4273]
[1724887723036,3.0,2533.7,2533.3,2.67003]
[1724887725616,3.0,2533.8,2533.3,2.67003]
[1724887727041,6.94664,2533.8,2533.3,2.67003]
[1724887727240,9.43212869,2533.8,2533.3,2.4273]
[1724887728218,9.43355047,2533.8,2533.3,2.4273]
[1724887729542,9.43443062,2533.8,2533.3,2.4273]
[1724887730049,5.48779062,2533.8,2533.4,0.24273]
[1724887730200,2.48779062,2533.8,2533.4,0.24273]
[1724887730401,5.48779062,2533.9,2533.4,0.24273]
[1724887731132,2.48779062,2533.8,2533.4,0.24273]
[1724887733171,2.48850758,2533.8,2533.4,0.24273]
[1724887735272,2.48850758,2533.7,2533.3,2.4273]
[1724887735482,5.48850758,2533.7,2533.3,2.4273]
[1724887736078,9.43539758,2533.7,2533.3,2.4273]
[1724887736667,3.94695,2533.6,2533.3,2.4273]
[1724887738963,9.43579416,2533.7,2533.3,2.4273]
[1724887739188,9.43579416,2533.7,2533.5,2.3359]
[1724887740441,3.94711,2533.5,2533.0,2.2645]
[1724887740669,3.0,2533.4,2533.0,2.2645]
[1724887741072,5.48899416,2533.4,2533.0,2.2645]
[1724887741245,9.43627416,2533.4,2533.0,2.2645]
[1724887741645,9.43644746,2533.4,2533.0,2.2645]
[1724887742582,3.94746,2533.3,2533.0,2.2645]
[1724887743716,3.94761,2533.2,2533.0,2.2645]
[1724887744008,3.94761,2533.2,2532.6,2.3477]
[1724887744300,3.94761,2533.2,2532.7,0.55]
[1724887744606,3.94761,2533.2,2532.7,2.4868]
[1724887744791,3.94761,2533.2,2532.8,0.55]
[1724887745664,13.38385746,2533.4,2532.8,0.55]
[1724887746070,3.94746,2533.3,2532.8,0.55]
[1724887746269,3.0,2533.2,2532.8,0.55]
[1724887746474,3.0,2533.2,2532.8,1.02906845]
[1724887748779,3.0,2533.2,2532.9,2.3289]
[1724887751371,3.94775,2533.1,2532.9,2.3289]
[1724887755648,3.94775,2533.1,2532.5,2.2866]
[1724887755889,3.94775,2533.1,2532.5,3.08552844]
[1724887756707,3.9479,2533.0,2532.5,3.08552844]
[1724887756854,3.9479,2533.0,2532.5,2.2866]
[1724887757690,3.0,2532.9,2532.5,2.2866]
[1724887757849,6.94808,2532.9,2532.5,2.2866]
[1724887758692,3.94827,2532.8,2532.5,2.2866]
[1724887760169,6.94836,2532.7,2532.1,2.4869]
[1724887760359,3.94859,2532.6,2532.1,2.4869]
[1724887760553,6.94836,2532.7,2532.1,2.4869]
[1724887761968,6.94836,2532.7,2532.1,4.24078445]
[1724887762295,6.94836,2532.7,2532.2,0.42407844]
[1724887764005,10.89681,2532.7,2532.2,0.42407844]
[1724887764165,10.89681,2532.7,2532.1,2.4869]
[1724887764496,3.94851,2532.6,2532.1,2.4869]
[1724887767098,3.0,2532.5,2532.1,2.4869]
[1724887767857,6.94869,2532.5,2532.1,2.4869]
[1724887770625,6.94869,2532.5,2532.1,2.73559]
[1724887770925,3.0,2532.5,2532.1,2.73559]
[1724887776283,6.94868,2532.5,2531.9,2.4478]
[1724887776800,10.89743,2532.5,2531.9,2.4478]
[1724887777008,6.94868,2532.5,2531.9,2.4478]
[1724887777205,3.0,2532.5,2532.1,2.2974]
[1724887777518,3.0,2532.6,2532.3,2.2974]
[1724887777721,3.0,2532.6,2532.3,2.52714]
[1724887780029,3.0,2532.7,2532.3,2.52714]
[1724887783304,6.94837,2532.7,2532.3,2.52714]
[1724887783647,10.89687,2532.7,2532.3,2.2974]
[1724887783808,9.27917,2532.7,2532.1,2.2644]
[1724887785854,3.94852,2532.6,2532.1,2.2644]
[1724887786050,3.0,2532.5,2532.1,2.94283245]
[1724887786351,3.0,2532.6,2532.1,2.94283245]
[1724887787440,3.0,2532.6,2532.2,2.4228]
[1724887787642,3.0,2532.6,2532.2,3.35430425]
[1724887788664,3.0,2532.6,2532.3,2.3848]
[1724887789024,3.0,2532.6,2532.3,2.46377385]
[1724887789520,15.2463,2532.9,2532.3,2.46377385]
[1724887789521,3.0,2532.8,2532.3,2.46377385]
[1724887789934,3.0,2532.8,2532.3,2.3848]
[1724887790560,6.94822,2532.8,2532.3,2.3848]
[1724887790737,3.0,2532.8,2532.3,2.3848]
[1724887791123,3.94835,2532.7,2532.3,2.3848]
[1724887791336,3.0,2532.6,2532.3,2.3848]
[1724887791557,3.0,2532.6,2532.3,3.018207]
[1724887791769,3.0,2532.8,2532.3,3.018207]
[1724887792063,3.0,2532.8,2532.3,2.3848]
[1724887792922,6.94822,2532.8,2532.3,2.3848]
[1724887796431,3.94836,2532.7,2532.3,2.3848]
[1724887796631,3.0,2532.6,2532.3,2.3848]
[1724887796948,3.0,2532.6,2532.3,3.018207]
[1724887798642,7.35,2532.9,2532.4,4.02777003]
[1724887798837,7.35,2532.9,2532.5,2.9614]
[1724887799164,7.35,2532.9,2532.5,2.4114]
[1724887799374,3.94843,2532.7,2532.1,2.90596098]
[1724887799544,3.94843,2532.7,2532.1,2.4114]
[1724887799545,3.94867,2532.5,2532.1,2.4114]
[1724887799746,3.94913,2532.2,2532.1,2.4114]
[1724887800064,3.94894,2532.4,2531.9,2.3048]
[1724887800256,3.0,2532.3,2531.9,2.3048]
[1724887800463,6.94898,2532.3,2531.9,2.3048]
[1724887800635,3.0,2532.3,2531.9,2.3048]
[1724887800838,3.0,2532.3,2532.0,0.23048]
[1724887801270,3.0,2532.3,2532.1,2.3048]
[1724887801439,6.94867,2532.5,2532.1,2.3048]
[1724887803881,3.94913,2532.2,2531.7,2.3525]
[1724887804040,3.94913,2532.2,2531.8,1.04468798]
[1724887804239,3.94913,2532.2,2531.8,0.55]
[1724887804435,6.32707,2532.4,2531.8,0.55]
[1724887804436,3.94887,2532.4,2531.9,2.2655]
[1724887804646,3.0,2532.3,2532.1,2.2655]
[1724887804880,3.0,2532.5,2532.1,2.2655]
[1724887805565,6.9483,2532.8,2532.1,2.2655]
[1724887805877,7.35,2532.9,2532.4,2.4299]
[1724887806256,3.94821,2532.8,2532.4,2.4299]
[1724887806463,3.94847,2532.7,2532.4,2.4299]
[1724887806995,3.94847,2532.7,2532.2,0.254705]
[1724887806996,3.94867,2532.5,2532.2,2.2745]
[1724887808394,3.94852,2532.6,2532.2,2.2745]
[1724887809193,9.43858182,2532.8,2532.0,2.62975]
[1724887809194,4.10508445,2532.7,2532.0,2.62975]
[1724887809405,5.49029182,2532.6,2532.0,2.3482]
[1724887809603,3.94879,2532.5,2532.0,2.3482]
[1724887809763,6.94892,2532.4,2532.0,2.3482]
[1724887810896,3.94901,2532.3,2532.0,2.3482]
[1724887813762,7.89807,2532.3,2532.0,2.3482]
[1724887815392,3.94914,2532.2,2532.0,2.3482]
[1724887816692,3.94929,2532.1,2532.0,2.3482]
[1724887816896,3.94929,2532.1,2531.7,2.4639]
[1724887817105,3.94961,2531.9,2531.7,2.4639]
[1724887818354,3.94961,2531.9,2531.8,0.61838444]
[1724887818503,7.9823982,2532.4,2531.9,2.422]
[1724887818504,5.4896982,2532.4,2531.9,2.422]
[1724887818704,5.4896982,2532.4,2532.1,2.422]
[1724887818705,3.0,2532.4,2532.1,2.422]
[1724887818863,3.0,2532.4,2532.2,0.30509793]
[1724887819181,7.35,2532.6,2532.3,2.422]
[1724887819378,3.94843,2532.7,2532.3,2.422]
[1724887819589,3.94843,2532.7,2532.4,0.44809824]
[1724887819917,7.89689,2532.7,2532.4,0.44809824]
[1724887820273,3.94852,2532.6,2532.4,0.44809824]
[1724887820476,3.94871,2532.5,2532.2,0.30509793]
[1724887820680,3.94913,2532.2,2532.1,2.422]
[1724887820980,3.94913,2532.2,2531.9,2.422]
[1724887821483,3.94913,2532.2,2531.5,4.36264659]
[1724887821484,3.94962,2531.9,2531.6,2.3569]